Cogmind - Beta 10.2 @@@ ROGUE MODE // 2021.07.25 @ 17:51:58 Player: Timm35 Result: Destroyed by L-31 Rogue with Katana Performance ------------- Evolutions (1) 500 Regions Visited (4) 800 Robots Destroyed (31) 155 Value Destroyed (704) 704 Prototype IDs (4) 80 Alien Tech Used (0) 0 Bonus (0) 0 TOTAL SCORE: 2239 Bonus ------- None Cogmind --------- Core Integrity 0/400 Matter 300/300 Energy 100/100 System Corruption 5% Temperature Cool (0) Movement Core (350) Ox6 Location -9/Storage Parts ------- > --- POWER (1) -------- (None) > --- PROPULSION (4) --- (None) > --- UTILITY (2) ------ Small Storage Unit Large Storage Unit > --- WEAPON (2) ------- (None) > --- INVENTORY (12) --- Improved Ion Engine Light Nuclear Core Small Storage Unit Improved Medium Laser Light Assault Rifle Improved Assault Rifle Light Cannon EMP Trap EMP Trap Peak State ------------ > --- POWER ------------ Light Nuclear Core > --- PROPULSION ------- Light Treads Light Treads Light Treads Improved Treads > --- UTILITY ---------- Small Storage Unit Large Storage Unit > --- WEAPON ----------- Small Laser Improved Assault Rifle > --- INVENTORY -------- Light Ion Engine Improved Ion Engine Light Nuclear Core Small Storage Unit Improved Medium Laser Light Assault Rifle Light Assault Rifle Light Cannon Hammer EMP Trap EMP Trap [Rating: 15] Favorites ----------- Power Light Ion Engine Engine Light Ion Engine Power Core Light Nuclear Core Propulsion Light Treads Treads Light Treads Hover Unit Backup Propulsion I Utility Small Storage Unit Storage Small Storage Unit Weapon Light Assault Rifle Energy Gun Small Laser Ballistic Gun Light Assault Rifle Impact Weapon Hammer Build | -11 -10 -10 -9 -9 ------- Run | Scr Mat Min Mat Sto Slots Evolved 2 | . . . 2 . Power . | . . . . . Propulsion 2 | . . . 2 . Utility . | . . . . . Weapon . | . . . . . Parts Attached 29 | 7 7 4 7 4 Power 5 | 1 1 1 1 1 Engine 4 | 1 1 1 . 1 Core 1 | . . . 1 . Reactor . | . . . . . Propulsion 7 | 2 . 1 3 1 Treads 7 | 2 . 1 3 1 Leg . | . . . . . Wheel . | . . . . . Hover . | . . . . . Flight . | . . . . . Utility 4 | 2 1 . 1 . Device . | . . . . . Storage 4 | 2 1 . 1 . Processor . | . . . . . Hackware . | . . . . . Protection . | . . . . . Artifact . | . . . . . Weapon 13 | 2 5 2 2 2 Energy Gun 6 | 2 2 1 . 1 Energy Cannon . | . . . . . Ballistic Gun 6 | . 3 1 2 . Ballistic Cannon . | . . . . . Launcher . | . . . . . Special Weapon . | . . . . . Impact Weapon 1 | . . . . 1 Slashing Weapon . | . . . . . Piercing Weapon . | . . . . . Special Melee Weapon . | . . . . . Unidentified Prototypes 2 | . . . 1 1 Parts Lost 21 | . 5 5 6 5 Power 5 | . 1 1 1 2 Propulsion 7 | . . 2 3 2 Utility . | . . . . . Weapon 9 | . 4 2 2 1 Highest Loss Streak 5 | . 2 3 3 5 Average Slot Usage (%) 86 | . 98 87 82 73 Engine 8 | . 13 14 5 . Core 2 | . . . 3 10 Treads 24 | . 28 16 26 19 Storage 24 | . 28 28 22 22 Energy Gun 7 | . 9 1 9 10 Ballistic Gun 16 | . 17 26 12 9 Naked Turns . | . . . . . Heaviest Build 31 | 17 26 25 29 31 Greatest Support 83 | 40 40 40 83 40 Greatest Overweight (x) 4 | 1 . 1 4 . Average Overweight (x) . | . . . . . Largest Inventory Capacity 12 | 8 12 12 12 12 Average Capacity 11 | 7 9 12 12 12 Most Carried 12 | 6 9 12 12 10 Average Carried 8 | 3 6 9 10 9 Final Capacity 12 | 8 12 12 12 12 Final Carried 11 | 5 8 9 11 9 Class Distribution -------------------- 78% | Mutant 21% | Scavenger-Mutant Dominant Class ---------------- Mutant | -10/Materials Mutant | -10/Mines Mutant | -9/Materials Scavenger-Mutant | -9/Storage Resources | -11 -10 -10 -9 -9 ----------- Run | Scr Mat Min Mat Sto Matter Collected 619 | 270 86 48 215 . Remotely . | . . . . . Salvage Created 1024 | 111 250 89 574 . Parts 68 | 5 20 6 37 . Haulers Intercepted 1 | . . . 1 . Recyclers Shooed . | . . . . . Parts Field Recycled . | . . . . . Retrieved Matter . | . . . . . Parts Self-Destructed . | . . . . . Prevented . | . . . . . Kills | -11 -10 -10 -9 -9 ------- Run | Scr Mat Min Mat Sto Combat Hostiles Destroyed 26 | . 9 4 13 . Guns 26 | . 9 4 13 . Classes Destroyed 9 | 2 3 . 4 . Tunneler 1 | 1 . . . . Hauler 1 | . . . 1 . Recycler 1 | 1 . . . . Operator 1 | . . . 1 . Watcher 1 | . 1 . . . Swarmer 12 | . 6 3 3 . Grunt 10 | . 3 1 6 . Brawler 1 | . . . 1 . Sentry 3 | . . . 3 . Best Kill Streak 6 | 1 3 3 6 . Combat Bots Only 6 | . 3 3 6 . Max Kills in Single Turn 2 | 1 1 1 2 . Gunslinging 1 | . . . 1 . Exploded . | . . . . . Melee . | . . . . . Uniques/NPCs Destroyed . | . . . . . Combat | -11 -10 -10 -9 -9 -------- Run | Scr Mat Min Mat Sto Damage Taken 2694 | . 637 384 952 721 Core 581 | . 89 58 167 267 Absorbed by Shields . | . . . . . Core Remaining (%) 70 | 100 . 41 . . Volleys Fired 107 | 4 35 19 48 1 Largest 2 | 2 2 2 2 2 Hottest 100 | 100 100 60 63 79 Shots Fired 185 | 8 50 32 93 2 Gun 185 | 8 50 32 93 2 Cannon . | . . . . . Launcher . | . . . . . Special . | . . . . . Kinetic 132 | . 35 29 67 1 Thermal 53 | 8 15 3 26 1 Explosive . | . . . . . Electromagnetic . | . . . . . Robot Hit Streak 16 | 6 16 4 10 . Robot Miss Streak 3 | . 3 2 2 . Penetration Max . | . . . . . Secondary Targets 5 | . . 2 3 . Max Gunslinging Chain 1 | . . 1 1 . Shots Hit Robots 137 | 6 38 20 70 3 Core Hits 58 | 3 17 8 28 2 Critical Hits 2 | . 1 . 1 . Critical Kills 1 | . 1 . . . Critical Parts Destroyed 1 | . . . 1 . Melee Attacks 8 | . . . . 8 Impact 8 | . . . . 8 Slashing . | . . . . . Piercing . | . . . . . Sneak Attacks . | . . . . . Combat Hostiles . | . . . . . Follow-up Attacks . | . . . . . Damage Inflicted 1470 | 74 362 153 807 74 Guns 1381 | 74 362 153 792 . Cannons . | . . . . . Explosions . | . . . . . Melee 55 | . . . . 55 Ramming 34 | . . . 15 19 Kinetic 950 | . 200 121 629 . Thermal 431 | 74 162 32 163 . Explosive . | . . . . . Electromagnetic . | . . . . . Impact 55 | . . . . 55 Slashing . | . . . . . Piercing . | . . . . . Highest Corruption 5 | . . . . 5 Average Corruption 4 | . . . . 4 Corruption Purged . | . . . . . Effects 3 | . . . . 3 Message Errors 1 | . . . . 1 Matter Fused 1 | . . . . 1 Data Loss (major) 1 | . . . . 1 Overload Shots . | . . . . . Overflow Damage . | . . . . . Projectiles . | . . . . . Explosions . | . . . . . Melee . | . . . . . Knockbacks 1 | . . . 1 . Impact 1 | . . . 1 . Kinetic . | . . . . . Secondary . | . . . . . Self-Inflicted Damage . | . . . . . Shots . | . . . . . Rammed 13 | . . . 5 8 Targets Rammed 13 | . . . 5 8 Kicked . | . . . . . Crushed . | . . . . . Highest Temperature 167 | 78 167 20 18 15 Average Temperature 34 | 38 67 11 6 10 Received Heat Transfer 786 | . 162 120 324 180 Siege Activations . | . . . . . Robots Corrupted . | . . . . . Combat Hostiles . | . . . . . Parts Fried . | . . . . . Impact Corruptions . | . . . . . Robots Melted . | . . . . . Combat Hostiles . | . . . . . Parts Melted 3 | 1 . . 2 . Heat Transferred 1117 | 222 445 75 375 . Parts Sabotaged . | . . . . . Parts Stolen . | . . . . . Parts Stripped . | . . . . . Power Chain Reactions . | . . . . . Missiles Intercepted . | . . . . . Alert | -11 -10 -10 -9 -9 ------- Run | Scr Mat Min Mat Sto Peak Influence 275 | 10 140 66 275 126 Initial 111 | . 6 31 23 111 Average 74 | 6 58 49 98 111 Maximum Alert Level 1 | . . . 1 . Low Security (%) 95 | 100 100 100 89 100 Level 1 4 | . . . 10 . Level 2 . | . . . . . Level 3 . | . . . . . Level 4 . | . . . . . Level 5 . | . . . . . High Security . | . . . . . Max Security . | . . . . . Squads Dispatched 3 | . 1 . 1 1 Investigation 1 | . 1 . . . Extermination . | . . . . . Reinforcement 2 | . . . 1 1 Assault . | . . . . . Garrison . | . . . . . Intercept . | . . . . . Construction Impeded . | . . . . . Haulers Reinforced . | . . . . . Stealth | -11 -10 -10 -9 -9 --------- Run | Scr Mat Min Mat Sto Distress Signals . | . . . . . Communications Jammed . | . . . . . Distress Signals . | . . . . . Times Spotted 54 | . 11 8 32 3 Peak Tracking Total 9 | . 3 3 9 4 Tactical Retreats 6 | . 1 3 2 . Traps | -11 -10 -10 -9 -9 ------- Run | Scr Mat Min Mat Sto Traps Triggered 6 | . 1 . 1 4 Indirectly . | . . . . . Trap Hack Attempts . | . . . . . Triggered . | . . . . . Disarmed . | . . . . . Reprogrammed . | . . . . . Reused . | . . . . . Traps Extracted . | . . . . . Installed . | . . . . . Triggered . | . . . . . Machines | -11 -10 -10 -9 -9 ---------- Run | Scr Mat Min Mat Sto Machines Disabled . | . . . . . Max in Single Turn . | . . . . . Machines Sabotaged . | . . . . . Garrisons Compromised . | . . . . . Overloaded Fab Kills . | . . . . . Fab Network Shutdowns . | . . . . . Hacking | -11 -10 -10 -9 -9 --------- Run | Scr Mat Min Mat Sto Machines Accessed 8 | . 3 . 2 3 Terminals 5 | . 2 . 1 2 Fabricators . | . . . . . Repair Stations 1 | . . . 1 . Recycling Units 2 | . 1 . . 1 Scanalyzers . | . . . . . Garrison Access . | . . . . . Total Hacks 25 | . 11 . 6 8 Successful 15 | . 7 . 4 4 Failed 9 | . 3 . 2 4 Catastrophic 1 | . 1 . . . Database Lockouts 1 | . 1 . . . Manual . | . . . . . Terminals 20 | . 9 . 4 7 Fabricators . | . . . . . Repair Stations 2 | . . . 2 . Recycling Units 3 | . 2 . . 1 Scanalyzers . | . . . . . Garrison Access . | . . . . . Terminal Hacks 11 | . 5 . 3 3 Record 8 | . 4 . 2 2 Part Schematic 1 | . . . . 1 Prototype ID Bank 1 | . 1 . . . Alert Level 1 | . . . 1 . Fabricator Hacks . | . . . . . Repair Station Hacks 1 | . . . 1 . Refit 1 | . . . 1 . Recycling Unit Hacks 3 | . 2 . . 1 Report Inventory 2 | . 1 . . 1 Retrieve Components 1 | . 1 . . . Scanalyzer . | . . . . . Garrison Access Hacks . | . . . . . Unauthorized Hacks . | . . . . . Terminals . | . . . . . Fabricators . | . . . . . Repair Stations . | . . . . . Recycling Units . | . . . . . Scanalyzers . | . . . . . Garrison Access . | . . . . . Data Cores Recovered . | . . . . . Used . | . . . . . Hacking Detections 5 | . 2 . 1 2 Full Trace Events . | . . . . . Feedback Events . | . . . . . Feedback Blocked . | . . . . . Robot Schematics Acquired . | . . . . . Robots Built . | . . . . . Matter . | . . . . . Time . | . . . . . Total Robot Build Rating . | . . . . . Part Schematics Acquired 1 | . . . . 1 Parts Built . | . . . . . Matter . | . . . . . Time . | . . . . . Total Part Build Rating . | . . . . . Parts Repaired . | . . . . . Time . | . . . . . Parts Recycled . | . . . . . Recycled Matter . | . . . . . Retrieved Matter . | . . . . . Retrieved Components 2 | . 2 . . . Parts Scanalyzed . | . . . . . Part Schematics Acquired . | . . . . . Parts Damaged . | . . . . . Bothacking | -11 -10 -10 -9 -9 ------------ Run | Scr Mat Min Mat Sto Used RIF Installer . | . . . . . Robots Hacked . | . . . . . Non-combat . | . . . . . Combat . | . . . . . Robot Hacks Applied . | . . . . . Relay Couplers Released . | . . . . . Robots Rewired . | . . . . . Allies Hacked . | . . . . . Hacks Repelled . | . . . . . Allies | -11 -10 -10 -9 -9 -------- Run | Scr Mat Min Mat Sto Total Allies . | . . . . . Largest Group . | . . . . . Highest-Rated Group . | . . . . . Highest-Rated Ally . | . . . . . Total Orders . | . . . . . Ally Attacks . | . . . . . Total Damage . | . . . . . Kills . | . . . . . Allies Corrupted . | . . . . . Allies Melted . | . . . . . Intel | -11 -10 -10 -9 -9 ------- Run | Scr Mat Min Mat Sto Robot Analysis Total . | . . . . . Derelict Logs Recovered 2 | . . 2 . . Drone Launches . | . . . . . Drone Recoveries . | . . . . . Exploration | -11 -10 -10 -9 -9 ------------- Run | Scr Mat Min Mat Sto Turns Passed 2571 | 160 669 479 1021 242 Spaces Moved 1209 | 86 356 238 404 125 Core 9 | 9 . . . . Treads 1153 | 77 356 238 357 125 Legs . | . . . . . Wheels . | . . . . . Hover 47 | . . . 47 . Flight . | . . . . . Fastest Speed 50 | 50 160 160 160 160 Average Speed 173 | 149 160 175 192 160 Slowest Speed 420 | 160 160 180 420 160 Overloaded Moves . | . . . . . Propulsion Burnouts . | . . . . . Robots Hopped . | . . . . . Cave-ins Triggered . | . . . . . Exploration Rate (%) 33 | 4 52 61 32 16 Regions Visited 4 Branch Regions 2 Pre-discovered Areas 2 | . . 2 . . Known Exits Taken . | . . . . . Unknown Exits Taken 4 | 1 1 1 1 . Scrap Searched 1 | . . 1 . . Spaces Dug . | . . . . . Terrain Destroyed . | . . . . . Melee . | . . . . . Projectile . | . . . . . AOE . | . . . . . Terrain Rammed . | . . . . . Walls Destroyed . | . . . . . Machines Disabled . | . . . . . Actions | -11 -10 -10 -9 -9 --------- Run | Scr Mat Min Mat Sto Total 1502 | 110 413 274 557 148 Wait 94 | 2 2 5 84 1 Move 1206 | 85 355 237 404 125 Hop . | . . . . . Pick Up 38 | 12 11 7 8 . Fast Attach . | . . . . . Attach 24 | 7 5 4 5 3 Detach 1 | . . . . 1 Swap 5 | . 2 . 2 1 Drop 7 | . 3 2 2 . Fire 107 | 4 35 19 48 1 Melee 8 | . . . . 8 Ram 1 | . . . . 1 Kick . | . . . . . Crush 11 | . . . 4 7 Escape Stasis . | . . . . . Rewire . | . . . . . Trap . | . . . . . Miscellaneous . | . . . . . Route ------- -11/Scrapyard -10/Materials (discovered 3 exits: *Mat / [*Min x2]) -10/Mines (discovered 2 exits: *Mat x2) -9/Materials -9/Storage History --------- Turn | Location | Event 17 | -11/Scrapyard | Discovered new exit (range 16) 161 | -11/Scrapyard | Entered Materials 173 | -10/Materials | Central database locked down 319 | -10/Materials | Build established: Mutant 402 | -10/Materials | Discovered new exit (range 12) 673 | -10/Materials | Discovered new exit (range 13) 817 | -10/Materials | Discovered new exit (range 8) 830 | -10/Materials | Entered Mines 902 | -10/Mines | Discovered new exit (range 9) 912 | -10/Mines | Met a Derelict bent on vengeance 980 | -10/Mines | Learned location of Zion (-7) 1034 | -10/Mines | Core integrity fell below 50% 1058 | -10/Mines | Found a hidden stash of uninstalled traps 1062 | -10/Mines | Lost 3 parts (1p1n1w) 1235 | -10/Mines | Discovered new exit (range 12) 1309 | -10/Mines | Entered Materials 1309 | -9/Materials | Evolved 2 slots: Propulsion x2 2289 | -9/Materials | Build established: Scavenger-Mutant 2289 | -9/Materials | Discovered new exit (range 6) 2330 | -9/Materials | Entered Storage 2356 | -9/Storage | Lost 3 parts (2n1w) 2526 | -9/Storage | Core integrity fell below 50% 2564 | -9/Storage | Core integrity fell below 20% 2572 | -9/Storage | Destroyed by L-31 Rogue with Katana Last Messages --------------- 02441_ Connecting with Terminal... >>Schematic(Mace) Downloading schematic... Mace Rating: 2 Schematic downloaded. 02442_ System corrupted: Substantial component data lost. 02503_ #,LNIBEFZLZC>DZTY>P%BF4>B>N=0=CH 02512_ O-16 Technician: "IFF HANDSHAKE FAILED. SECURING TERMINAL." 02514_ ALERT: Hostiles spotted, dispatching reinforcements to Terminal S014. 02536_ System corrupted: Matter fused (-9). 02536_ Slammed into L-31 Rogue. 02542_ Lgt. Treads destroyed. 02543_ Slammed into L-31 Rogue. 02554_ Lgt. Nuclear Core destroyed. 02554_ Lgt. Treads destroyed. 02564_ Lgt. Ion Engine destroyed. 02570_ Hammer destroyed. 02571_ Slammed into L-31 Rogue. Map ----- +----------------------------------------------------+ | ?????????????????????????????????????????????????? | | ?????????????????????????????????????????????????? | | ?????????????????????????????????????????????????? | | ?????????????????????????????????????????????????? | | ?????????????????????????#???????????????????????? | | ????????????????????????? ???????????????????????? | | ???????????????????????? ???????????????????????? | | ???????????????????????? ???????????????????????? | | ???????????????????????# #???????????????????????? | | ???????????????????????# #???????????????????????? | | ???????????????????????# #???????????????????????? | | ???????????????????????# ###?????????????#######?? | | ????????????###"T"###### #T############### #?? | | ??????????? #?? | | ??????????? #?? | | ??????????? #?? | | ?????????????##########+##/############### #?? | | ??????????????????????# ############ ##?? | | ??????????????????????# """"" ## !# #??? | | ??????????????????????# "???" ## T # #??? | | ??????????????????????# ""??" ## """ # #??? | | ??????????????????????# "??"" ## """ + #??? | | ??????????????????????# "???" ## """ # #??? | | ??????????????????????# """"" ## """ # #??? | | ??????????????????????# lg g ## """ # #??? | | ??????????????????????# @ ## # #??? | | ??????????????????????###############"Y"### #??? | | ????????????????????????????????????#"""#?#####??? | | ????????????????????????????????????#####????????? | | ?????????????????????????????????????????????????? | | ?????????????????????????????????????????????????? | | ?????????????????????????????????????????????????? | | ?????????????????????????????????????????????????? | | ?????????????????????????????????????????????????? | | ?????????????????????????????????????????????????? | | ?????????????????????????????????????????????????? | | ?????????????????????????????????????????????????? | | ?????????????????????????????????????????????????? | | ?????????????????????????????????????????????????? | | ?????????????????????????????????????????????????? | | ?????????????????????????????????????????????????? | | ?????????????????????????????????????????????????? | | | | | | | | | | | | | | | | | +----------------------------------------------------+ Best States ------------- Heat Dissipation 28 Energy Generation 14 Energy Capacity 250 Matter Stores 300 Matter Capacity 300 Sight Range 16 Terrain Scan Density 10 Evasion (%) 40 Recoil Reduction 4 Item Schematics ----------------- Mace | -9/Storage | Hacked Robot Schematics ------------------ None Fabricated ------------ Nothing Alien Tech Used ----------------- None Achievements -------------- None Challenges ------------ None Game ------ Seed TerrainAnalysisBay Manual? 0 Play Time 00:35:11 Cumulative 5.0 hours Start 2021.07.25 @ 16:33:03 End 2021.07.25 @ 17:51:58 Sessions 1 Manual Loads 0 Difficulty Rogue Special Mode None Game No. 10 Rogue 10 Adventurer 0 Explorer 0 Win Type - Total 0 Types 0/0/0/0/0/0/0/0/0 Lore% 3 Gallery% 9 Achievement% 7 Wizard Run 0 Options --------- ASCII 0 Keyboard 0 Movement Numpad Keybinds 0 Fullscreen 1 Font 18/X11Bold Map View 76x50 Tactical HUD 1 Map Filters NONE Filters NONE Steam 1 RUN: 55d40e4c-6cf3-48f0-ba97-85d196380b05